bitfinex/quotes_ETHUSD_20250905
["timestamp","ask_amount","ask_price","bid_price","bid_amount"]
[1757111888483,45.62977821,4311.0,4310.9,24.30470122]
[1757111888780,45.62977821,4311.0,4310.9,22.09670122]
[1757111888944,46.85977821,4311.0,4310.9,25.09670122]
[1757111890579,48.08977821,4311.0,4310.9,25.09670122]
[1757111890969,48.08977821,4311.0,4310.9,25.21190122]
[1757111891572,47.61737821,4311.0,4310.9,25.21190122]
[1757111891772,48.06747821,4311.0,4310.9,25.21190122]
[1757111891962,49.29747821,4311.0,4310.9,25.21190122]
[1757111893486,50.52747821,4311.0,4310.9,25.21190122]
[1757111893659,50.52747821,4311.0,4310.9,18.75290062]
[1757111894850,51.75747821,4311.0,4310.9,18.75290062]
[1757111896388,52.98747821,4311.0,4310.9,18.75290062]
[1757111896586,49.83837821,4311.0,4310.9,19.04270062]
[1757111896758,49.83837821,4311.0,4310.9,21.80490062]
[1757111897866,51.06837821,4311.0,4310.9,21.80490062]
[1757111899377,52.29837821,4311.0,4310.9,21.80490062]
[1757111899891,52.29837821,4311.0,4310.9,19.04270062]
[1757111900392,52.29837821,4311.0,4310.9,21.80490062]
[1757111900885,53.52837821,4311.0,4310.9,21.80490062]
[1757111901053,18.05723398,4311.0,4310.9,21.80490062]
[1757111901253,18.05723398,4311.0,4310.9,22.03874511]
[1757111902291,19.28723398,4311.0,4310.9,22.03874511]
[1757111902490,19.16723398,4311.0,4310.9,22.03874511]
[1757111903592,20.39723398,4311.0,4310.9,22.03874511]
[1757111904159,20.39723398,4311.0,4310.9,15.39954511]
[1757111904493,20.39723398,4311.0,4310.9,19.04170062]
[1757111904862,20.39723398,4311.0,4310.9,21.35990062]
[1757111905083,21.62723398,4311.0,4310.9,21.80390062]
[1757111906066,21.62723398,4311.0,4310.9,21.35990062]
[1757111906560,23.16603398,4311.0,4310.9,11.76070062]
[1757111906761,25.96423398,4311.0,4310.9,15.63670062]
[1757111906966,25.96423398,4311.0,4310.9,18.63670062]
[1757111908601,27.19423398,4311.0,4310.9,13.96870062]
[1757111908893,27.19423398,4311.0,4310.9,18.63670062]
[1757111909968,28.42423398,4311.0,4310.9,18.63670062]
[1757111910501,25.62603398,4311.0,4310.9,18.63670062]
[1757111910700,28.42423398,4311.0,4310.9,18.63670062]
[1757111911097,26.07613398,4311.0,4310.9,18.63670062]
[1757111911265,27.30613398,4311.0,4310.9,18.63670062]
[1757111911901,29.65423398,4311.0,4310.9,18.63670062]
[1757111912105,27.30613398,4311.0,4310.9,18.63670062]
[1757111912399,26.85603398,4311.0,4310.9,18.63670062]
[1757111912599,28.08603398,4311.0,4310.9,18.63670062]
[1757111913675,28.53613398,4311.0,4310.9,18.63670062]
[1757111914105,29.76613398,4311.0,4310.9,18.63670062]
[1757111914406,32.11423398,4311.0,4310.9,18.63670062]
[1757111915490,33.34423398,4311.0,4310.9,18.63670062]
[1757111916703,34.57423398,4311.0,4310.9,18.75190062]
[1757111917402,31.46723398,4311.0,4310.9,19.04170062]
[1757111917702,31.77603398,4311.0,4310.9,18.75190062]
[1757111918193,33.00603398,4311.0,4310.9,18.75190062]
[1757111918365,33.45613398,4311.0,4310.9,18.75190062]
[1757111918971,33.45613398,4311.0,4310.9,24.08590062]
[1757111919583,34.68613398,4311.0,4310.9,24.08590062]
[1757111920900,35.46603398,4311.0,4310.9,24.08590062]
[1757111922197,36.69603398,4311.0,4310.9,24.08590062]
[1757111923406,37.14043398,4311.0,4310.9,24.08590062]
[1757111923604,38.37043398,4311.0,4310.9,24.08590062]
[1757111924478,37.61723398,4311.0,4310.9,24.38800062]
[1757111924695,37.61723398,4311.0,4310.9,24.08590062]
[1757111925212,38.84723398,4311.0,4310.9,24.08590062]
[1757111925415,39.16303398,4311.0,4310.9,24.08590062]
[1757111926574,40.39303398,4311.0,4310.9,24.08590062]
[1757111926976,43.31503398,4311.0,4310.9,24.08590062]
[1757111927399,40.39303398,4311.0,4310.9,24.08590062]
[1757111927802,40.83743398,4311.0,4310.9,24.08590062]
[1757111928006,42.06743398,4311.0,4310.9,24.08590062]
[1757111928335,41.62303398,4311.0,4310.9,24.08590062]
[1757111929315,42.85303398,4311.0,4310.9,24.08590062]
[1757111930489,45.77503398,4311.0,4310.9,24.08590062]
[1757111930691,47.00503398,4311.0,4310.9,24.08590062]
[1757111931081,44.52743398,4311.0,4310.9,24.08590062]
[1757111932010,45.75743398,4311.0,4310.9,24.08590062]
[1757111933212,45.31303398,4311.0,4310.9,24.08590062]
[1757111933411,46.54303398,4311.0,4310.9,24.78216713]
[1757111936196,48.68723398,4311.0,4310.9,27.92396713]
[1757111937388,49.91723398,4311.0,4310.9,27.92396713]
[1757111938815,51.14723398,4311.0,4310.9,27.92396713]
[1757111940416,52.37723398,4311.0,4310.9,27.92396713]
[1757111941594,39.15060888,4311.0,4310.9,27.92396713]
[1757111942104,25.49782683,4311.0,4310.9,27.92396713]
[1757111942403,0.001,4311.2,4311.1,3.1115936]
[1757111942608,0.001,4311.2,4311.1,9.9875936]
[1757111942809,0.001,4311.2,4311.1,13.1293936]
[1757111944525,1.231,4311.2,4311.1,13.1293936]
[1757111945026,1.231,4311.2,4311.1,9.9875936]
[1757111945198,1.231,4311.2,4311.1,10.2896936]
[1757111945725,2.461,4311.2,4311.1,10.2896936]
[1757111946411,2.461,4311.2,4311.1,9.9875936]
[1757111946613,2.7768,4311.2,4311.1,9.9875936]
[1757111947010,6.9288,4311.2,4311.0,7.0]
[1757111947216,2.922,4311.1,4311.0,7.0]
[1757111947436,5.24160265,4311.1,4311.0,5.581]
[1757111947634,2.922,4311.1,4311.0,5.2652]
[1757111948139,2.922,4311.1,4311.0,4.64818437]
[1757111948345,4.882818,4311.1,4311.0,11.64818437]
[1757111948843,7.2024116,4311.1,4311.0,11.64818437]
[1757111949022,4.882818,4311.1,4311.0,11.64818437]
[1757111949647,6.112818,4311.1,4311.0,11.64818437]
[1757111950142,6.112818,4311.1,4311.0,12.34462867]
[1757111951210,8.4324116,4311.1,4311.0,12.34462867]
[1757111951411,9.6624116,4311.1,4311.0,12.34462867]
[1757111952340,3.994,4311.1,4311.0,13.13662867]
[1757111952841,5.224,4311.1,4311.0,12.44018437]
[1757111953611,5.363,4311.1,4311.0,12.44018437]
[1757111954016,5.224,4311.1,4311.0,12.44018437]
[1757111954326,5.224,4311.1,4311.0,15.44018437]
[1757111954327,6.454,4311.1,4311.0,15.44018437]
[1757111955127,6.593,4311.1,4311.0,15.44018437]
[1757111955536,8.8516,4311.1,4311.0,15.44018437]
[1757111956626,11.1711936,4311.1,4311.0,7.77318437]
[1757111956840,12.4011936,4311.1,4311.0,11.64918437]
[1757111957243,12.4011936,4311.1,4311.0,11.76438437]
[1757111958256,13.6311936,4311.1,4311.0,11.76438437]
[1757111958454,11.3116,4311.1,4311.0,11.76438437]
[1757111958751,9.84,4311.1,4311.0,15.87248437]
[1757111958956,9.84,4311.1,4311.0,18.34358437]
[1757111959559,11.07,4311.1,4311.0,20.66323178]
[1757111960656,11.07,4311.1,4311.0,18.02748437]
[1757111960956,12.3,4311.1,4311.0,15.55638437]
[1757111961351,12.3,4311.1,4311.0,21.10283178]
[1757111962334,13.53,4311.1,4311.0,21.10283178]
[1757111963752,14.76,4311.1,4311.0,21.10283178]
[1757111965054,15.99,4311.1,4311.0,21.10283178]
[1757111966161,15.99,4311.1,4311.0,27.50483178]
[1757111966331,17.22,4311.1,4311.0,27.50483178]
[1757111967455,17.17,4311.1,4311.0,27.50483178]
[1757111967629,18.4,4311.1,4311.0,27.50483178]
[1757111968953,19.63,4311.1,4311.0,27.50483178]
[1757111970467,20.86,4311.1,4311.0,27.50483178]
[1757111971283,20.86,4311.1,4311.0,27.50883178]
[1757111971785,20.861,4311.1,4311.0,27.50883178]
[1757111971930,22.091,4311.1,4311.0,27.50883178]
[1757111973455,23.321,4311.1,4311.0,27.50883178]
[1757111974862,24.551,4311.1,4311.0,26.75313178]
[1757111975358,24.551,4311.1,4311.0,20.37383178]
[1757111975566,24.551,4311.1,4311.0,24.16583178]
[1757111975768,24.5662,4311.1,4311.0,20.37383178]
[1757111975937,24.551,4311.1,4311.0,20.37383178]
[1757111976136,24.551,4311.1,4311.0,24.16583178]
[1757111976372,25.781,4311.1,4311.0,24.16583178]
[1757111978038,25.7962,4311.1,4311.0,24.16583178]
[1757111978238,27.0262,4311.1,4311.0,24.16583178]
[1757111979638,28.2562,4311.1,4311.0,24.16583178]
[1757111980338,28.241,4311.1,4311.0,24.16583178]
[1757111980544,28.241,4311.1,4311.0,27.26783178]
[1757111981051,28.241,4311.1,4311.0,26.81723178]
[1757111981052,29.471,4311.1,4311.0,26.81723178]
[1757111982384,30.701,4311.1,4311.0,26.81723178]
[1757111983273,30.7054,4311.1,4311.0,24.16583178]
[1757111983743,31.931,4311.1,4311.0,24.16583178]
[1757111984985,31.9397,4311.1,4311.0,24.16583178]
[1757111985165,33.1697,4311.1,4311.0,24.16583178]
[1757111985362,33.1697,4311.1,4311.0,17.87903178]
[1757111985681,33.161,4311.1,4311.0,17.87903178]
[1757111986474,34.391,4311.1,4311.0,17.87903178]
[1757111987396,34.391,4311.1,4311.0,20.23133178]
[1757111988291,35.621,4311.1,4311.0,20.23133178]
[1757111989676,36.851,4311.1,4311.0,20.23133178]
[1757111990395,36.851,4311.1,4311.0,20.53043178]
[1757111991383,38.081,4311.1,4311.0,20.98103178]
[1757111991680,38.081,4311.1,4311.0,28.15103178]
[1757111992987,39.311,4311.1,4311.0,28.15103178]
[1757111993852,39.311,4311.1,4311.0,27.70043178]
[1757111994047,39.311,4311.1,4311.0,27.40133178]
[1757111994254,40.541,4311.1,4311.0,27.40133178]
[1757111994661,40.541,4311.1,4311.0,25.04903178]
[1757111994662,40.5454,4311.1,4311.0,25.04903178]
[1757111994864,40.5454,4311.1,4311.0,21.17403178]
[1757111995061,40.5454,4311.1,4311.0,25.04803178]
[1757111995267,40.981,4311.1,4311.0,24.25603178]
[1757111995655,42.211,4311.1,4311.0,24.25603178]
[1757111996066,42.211,4311.1,4311.0,21.17403178]
[1757111996254,42.211,4311.1,4311.0,25.04803178]
[1757111996673,41.7754,4311.1,4311.0,25.04803178]
[1757111996867,42.211,4311.1,4311.0,25.04803178]
[1757111997066,43.0054,4311.1,4311.0,25.04803178]
[1757111998456,44.2354,4311.1,4311.0,25.04803178]
[1757111999384,44.231,4311.1,4311.0,25.04803178]
[1757111999551,44.231,4311.1,4311.0,27.40033178]
[1757111999952,45.461,4311.1,4311.0,27.40033178]
[1757112000996,45.4654,4311.1,4311.0,25.04803178]
[1757112001358,46.6954,4311.1,4311.0,25.04803178]
[1757112001790,46.691,4311.1,4311.0,25.04803178]
[1757112002262,46.691,4311.1,4311.0,28.15003178]
[1757112002659,46.691,4311.1,4311.0,27.69943178]
[1757112002859,47.921,4311.1,4311.0,27.69943178]
[1757112003760,47.921,4311.1,4311.0,25.04803178]
[1757112004085,48.2094,4311.1,4311.0,25.04803178]
[1757112004260,49.4394,4311.1,4311.0,25.04803178]
[1757112004856,49.4394,4311.1,4311.0,18.85438437]
[1757112005060,49.5939,4311.1,4311.0,22.72838437]
[1757112005472,49.5939,4311.1,4311.0,25.04803178]
[1757112005789,50.8239,4311.1,4311.0,25.04803178]
[1757112006965,52.0539,4311.1,4311.0,25.04803178]
[1757112007156,51.8994,4311.1,4311.0,25.04803178]
[1757112008359,53.1294,4311.1,4311.0,25.04803178]
[1757112009894,54.3594,4311.1,4311.0,25.04803178]
[1757112010592,54.071,4311.1,4311.0,25.04803178]
[1757112011165,55.301,4311.1,4311.0,25.04803178]
[1757112011883,55.301,4311.1,4311.0,25.36233178]
[1757112012085,55.301,4311.1,4311.0,25.83003178]
[1757112012471,56.531,4311.1,4311.0,25.83003178]
[1757112013798,57.761,4311.1,4311.0,25.77203925]
[1757112015267,58.991,4311.1,4311.0,25.77203925]
[1757112016666,60.221,4311.1,4311.0,25.77203925]
[1757112018272,61.451,4311.1,4311.0,25.77203925]
[1757112018473,61.451,4311.1,4311.0,28.25423925]
[1757112019102,61.451,4311.1,4311.0,27.47223925]
[1757112019673,62.681,4311.1,4311.0,27.47223925]
[1757112021603,63.911,4311.1,4311.0,27.47223925]
[1757112022315,64.1884,4311.1,4311.0,14.82003925]
[1757112022510,63.911,4311.1,4311.0,17.82003925]
[1757112022703,65.141,4311.1,4311.0,20.30223925]
[1757112023687,65.141,4311.1,4311.0,21.08423925]
[1757112024108,65.141,4311.1,4311.0,20.61653925]
[1757112024416,62.4267622,4311.1,4311.0,21.37252309]
[1757112024614,62.4267622,4311.1,4311.0,21.08423925]
[1757112025717,63.6567622,4311.1,4311.0,21.08423925]
[1757112026917,64.8867622,4311.1,4311.0,21.08423925]
[1757112028519,66.1167622,4311.1,4311.0,21.08423925]
[1757112029930,67.3467622,4311.1,4311.0,21.08423925]
[1757112031306,68.5767622,4311.1,4311.0,21.08423925]
[1757112032596,69.8067622,4311.1,4311.0,21.08423925]
[1757112034424,71.0367622,4311.1,4311.0,21.08423925]
[1757112035728,72.2667622,4311.1,4311.0,21.08423925]
[1757112036722,72.2667622,4311.1,4311.0,21.31643925]
[1757112036929,72.2667622,4311.1,4311.0,21.08423925]
[1757112037130,73.4967622,4311.1,4311.0,21.08423925]
[1757112037512,73.4967622,4311.1,4311.0,20.61653925]
[1757112037809,73.4967622,4311.1,4311.0,21.08423925]
[1757112038330,73.4967622,4311.1,4311.0,20.30223925]
[1757112038528,74.7267622,4311.1,4311.0,20.30223925]
[1757112039037,75.0041622,4311.1,4311.0,17.82003925]
[1757112039999,76.6696622,4311.1,4311.0,16.91083925]
[1757112040229,75.9567622,4311.1,4311.0,20.50093925]
[1757112040545,75.9567622,4311.1,4311.0,20.94323925]
[1757112041320,77.1867622,4311.1,4311.0,20.94323925]
[1757112041828,77.1867622,4311.1,4311.0,20.18453925]
[1757112042002,77.4723622,4311.1,4311.0,17.70283925]
[1757112042403,77.1867622,4311.1,4311.0,20.18453925]
[1757112042710,78.4167622,4311.1,4311.0,20.18453925]
[1757112043129,78.4167622,4311.1,4311.0,17.70283925]
[1757112043937,78.7038622,4311.1,4311.0,17.70283925]
[1757112044236,80.3664622,4311.1,4311.0,17.70283925]
[1757112045021,80.3664622,4311.1,4311.0,24.87283925]
[1757112045631,81.5964622,4311.1,4311.0,24.87283925]
[1757112046950,82.8264622,4311.1,4311.0,24.87283925]
[1757112048644,84.0564622,4311.1,4311.0,24.87283925]
[1757112048814,83.6238622,4311.1,4311.0,24.87283925]
[1757112049947,83.6238622,4311.1,4311.0,24.98803925]
[1757112050150,84.8538622,4311.1,4311.0,24.98803925]
[1757112051550,86.0838622,4311.1,4311.0,24.98803925]
[1757112052046,86.5164622,4311.1,4311.0,24.98703925]
[1757112052814,87.7464622,4311.1,4311.0,24.98703925]
[1757112054722,88.9764622,4311.1,4311.0,24.98703925]
[1757112055241,88.9764622,4311.1,4311.0,17.81703925]
[1757112056043,90.2064622,4311.1,4311.0,17.81703925]
[1757112057334,89.7738622,4311.1,4311.0,17.81703925]
[1757112057665,91.0038622,4311.1,4311.0,17.81703925]
[1757112059031,92.2338622,4311.1,4311.0,17.81703925]
[1757112060359,93.4638622,4311.1,4311.0,17.81703925]
[1757112062058,94.6938622,4311.1,4311.0,17.81703925]
[1757112063256,95.9238622,4311.1,4311.0,17.81703925]
[1757112064552,97.1538622,4311.1,4311.0,17.81703925]
[1757112065964,98.3838622,4311.1,4311.0,17.81703925]
[1757112067952,99.6138622,4311.1,4311.0,17.81703925]
[1757112069259,100.5567622,4311.1,4311.0,21.05743925]
[1757112069558,98.0567622,4311.1,4311.0,21.05743925]
[1757112069939,75.71904513,4311.1,4311.0,21.05743925]
[1757112070139,1e-08,4311.3,4311.1,6.1115936]
[1757112070345,1e-08,4311.3,4311.2,9.9815398]
[1757112070666,1e-08,4311.3,4311.2,15.84973402]
[1757112072027,1.23000001,4311.3,4311.2,15.84973402]
[1757112073479,2.46000001,4311.3,4311.2,15.84973402]
[1757112074877,3.69000001,4311.3,4311.2,15.84973402]
[1757112076272,4.92000001,4311.3,4311.2,15.84973402]
[1757112077694,6.15000001,4311.3,4311.2,15.84973402]
[1757112079190,7.38000001,4311.3,4311.2,15.84973402]
[1757112080392,8.61000001,4311.3,4311.2,15.84973402]
[1757112081178,8.61000001,4311.3,4311.2,15.39243402]
[1757112081479,8.61000001,4311.3,4311.2,12.63543402]
[1757112081786,8.90200001,4311.3,4311.2,11.84343402]
[1757112082093,10.13200001,4311.3,4311.2,12.63543402]
[1757112082668,10.13200001,4311.3,4311.2,19.63543402]
[1757112083891,11.78970001,4311.3,4311.2,12.65389422]
[1757112084098,11.78970001,4311.3,4311.2,18.84243402]
[1757112084099,11.36200001,4311.3,4311.2,18.84243402]
[1757112084283,11.07000001,4311.3,4311.2,19.63443402]
[1757112084592,11.32640001,4311.3,4311.2,19.63443402]
[1757112085172,13.01930001,4311.3,4311.2,19.63443402]
[1757112086193,12.55640001,4311.3,4311.2,19.63443402]
[1757112086562,13.78640001,4311.3,4311.2,19.63443402]
[1757112087507,13.78640001,4311.3,4311.2,17.31489422]
[1757112087660,13.78640001,4311.3,4311.2,19.63443402]
[1757112087861,15.01640001,4311.3,4311.2,19.63443402]
[1757112089380,16.24640001,4311.3,4311.2,19.63443402]
[1757112089769,16.70930001,4311.3,4311.2,19.63443402]
[1757112089977,16.24640001,4311.3,4311.2,19.63443402]
[1757112090693,17.47640001,4311.3,4311.2,19.63443402]
[1757112092173,18.70640001,4311.3,4311.2,19.63443402]
[1757112093810,19.93640001,4311.3,4311.2,19.63443402]
[1757112094567,19.68000001,4311.3,4311.2,19.63443402]
[1757112095192,20.91000001,4311.3,4311.2,19.63443402]
[1757112096606,22.14000001,4311.3,4311.2,19.63443402]
[1757112097629,22.39840001,4311.3,4311.2,19.63443402]
[1757112098026,23.62840001,4311.3,4311.2,19.63443402]
[1757112099428,24.85840001,4311.3,4311.2,19.63443402]
[1757112101095,26.08840001,4311.3,4311.2,19.63443402]
[1757112102119,26.08840001,4311.3,4311.2,17.31489422]
[1757112102320,26.53730001,4311.3,4311.2,19.63443402]
[1757112102500,27.76730001,4311.3,4311.2,19.63443402]
[1757112102844,27.76730001,4311.3,4311.2,17.31489422]
[1757112103146,30.16520001,4311.3,4311.2,17.31489422]
[1757112103513,27.76730001,4311.3,4311.2,17.31489422]
[1757112104032,31.39520001,4311.3,4311.2,17.31389422]
[1757112104237,28.99730001,4311.3,4311.2,17.31389422]
[1757112105502,30.22730001,4311.3,4311.2,17.31389422]
[1757112105740,30.22730001,4311.3,4311.2,19.63343402]
[1757112106042,29.77840001,4311.3,4311.2,17.31389422]
[1757112106633,29.77840001,4311.3,4311.2,19.63343402]
[1757112106796,31.00840001,4311.3,4311.2,19.63343402]
[1757112107002,31.00840001,4311.3,4311.2,17.31389422]
[1757112107402,31.00840001,4311.3,4311.2,19.63343402]
[1757112107936,31.00840001,4311.3,4311.2,17.31389422]
[1757112108103,32.23840001,4311.3,4311.2,17.31389422]
[1757112109118,32.23840001,4311.3,4311.2,19.63343402]
[1757112109735,32.23840001,4311.3,4311.2,17.31389422]
[1757112109934,33.46840001,4311.3,4311.2,17.31389422]
[1757112110144,33.46840001,4311.3,4311.2,19.63343402]
[1757112111546,34.69840001,4311.3,4311.2,19.63343402]
[1757112112941,35.92840001,4311.3,4311.2,19.63343402]
[1757112113145,35.92840001,4311.3,4311.2,17.31389422]
[1757112113635,35.92840001,4311.3,4311.2,19.63343402]
[1757112115144,37.15840001,4311.3,4311.2,19.63343402]
[1757112116242,38.38840001,4311.3,4311.2,19.63343402]
[1757112117049,38.38840001,4311.3,4311.2,17.31389422]
[1757112117342,38.13000001,4311.3,4311.2,19.63343402]
[1757112117510,39.36000001,4311.3,4311.2,19.63343402]
[1757112118745,39.36000001,4311.3,4311.2,22.72423402]
[1757112119231,40.59000001,4311.3,4311.2,23.01251786]
[1757112120608,41.82000001,4311.3,4311.2,23.01251786]
[1757112121830,43.05000001,4311.3,4311.2,22.72423402]
[1757112122148,43.03000001,4311.3,4311.2,22.72423402]
[1757112123249,44.26000001,4311.3,4311.2,22.72423402]
[1757112124650,45.49000001,4311.3,4311.2,29.89423402]
[1757112125949,46.72000001,4311.3,4311.2,29.89423402]
[1757112127456,47.95000001,4311.3,4311.2,29.89423402]
[1757112128719,49.18000001,4311.3,4311.2,29.89423402]
[1757112130449,50.41000001,4311.3,4311.2,29.89423402]
[1757112131739,51.64000001,4311.3,4311.2,29.89423402]
[1757112131940,51.64100001,4311.3,4311.2,29.89423402]
[1757112133066,52.87100001,4311.3,4311.2,29.89423402]
[1757112134223,52.87100001,4311.3,4311.2,29.46623402]
[1757112134430,54.10100001,4311.3,4311.2,29.46623402]
[1757112134748,54.10100001,4311.3,4311.2,29.92793402]
[1757112136261,55.33100001,4311.3,4311.2,29.92793402]
[1757112137832,56.56100001,4311.3,4311.2,22.75793402]
[1757112139362,57.79100001,4311.3,4311.2,22.75793402]
[1757112140843,59.02100001,4311.3,4311.2,22.75793402]
[1757112142060,60.25100001,4311.3,4311.2,22.75793402]
[1757112142463,17.55035788,4311.3,4311.2,23.06265083]
[1757112143064,17.55035788,4311.3,4311.2,30.23265083]
[1757112143364,18.78035788,4311.3,4311.2,30.23265083]
[1757112143927,19.06325788,4311.3,4311.2,15.88063402]
[1757112144142,19.06325788,4311.3,4311.2,19.74663402]
[1757112144753,19.06325788,4311.3,4311.2,15.88063402]
[1757112144948,20.29325788,4311.3,4311.2,19.74663402]
[1757112146464,21.52325788,4311.3,4311.2,19.74663402]
[1757112146863,21.52325788,4311.3,4311.2,14.97343402]
[1757112147056,21.24035788,4311.3,4311.2,18.83943402]
[1757112147255,21.24035788,4311.3,4311.2,23.01625083]
[1757112147653,22.47035788,4311.3,4311.2,23.24825083]
[1757112148582,22.47035788,4311.3,4311.2,22.71153402]
[1757112148951,22.47035788,4311.3,4311.2,29.88153402]
[1757112149136,23.70035788,4311.3,4311.2,29.88153402]
[1757112150589,24.93035788,4311.3,4311.2,29.88153402]
[1757112151952,26.16035788,4311.3,4311.2,29.88153402]
[1757112153494,27.39035788,4311.3,4311.2,29.88153402]
[1757112153852,27.27035788,4311.3,4311.2,29.88153402]
[1757112154580,0.001,4311.4,4311.3,36.111486]
[1757112154781,0.001,4311.4,4311.3,36.41620281]
[1757112155079,0.001,4311.4,4311.3,49.25526259]
[1757112155451,0.001,4311.4,4311.3,49.48726259]
[1757112155882,0.001,4311.4,4311.3,49.25526259]
[1757112156186,1.231,4311.4,4311.3,49.25526259]
[1757112156380,0.001,4311.5,4311.4,6.1114322]
[1757112156680,2.46,4312.4,4312.1,6.11105568]
[1757112156885,2.46,4312.4,4312.1,19.29677249]
[1757112157081,2.46,4312.4,4312.1,25.07968576]
[1757112157268,1e-08,4312.4,4312.3,3.11094812]
[1757112157462,1e-08,4312.4,4312.3,17.14594812]
[1757112157652,1e-08,4312.4,4312.3,19.67266448]
[1757112157858,1e-08,4312.4,4312.3,23.30566448]
[1757112158774,1.23,4312.6,4312.5,3.11084057]
[1757112158971,1.23,4312.6,4312.5,9.97584057]
[1757112159176,1.1146875,4312.6,4312.5,16.20446548]
[1757112159784,61.9383,4313.5,4312.7,6.11073304]
[1757112159985,0.4552,4313.3,4312.7,15.30773304]
[1757112160153,1.5211,4312.8,4312.7,18.40783912]
[1757112160361,1.255,4312.8,4312.7,18.69943912]
[1757112160669,1.255,4312.8,4312.7,21.65013912]
[1757112160876,1.255,4312.8,4312.7,18.40783912]
[1757112161390,1.255,4312.8,4312.7,19.15203912]
[1757112161588,2.485,4312.8,4312.7,18.69943912]
[1757112161990,2.485,4312.8,4312.7,25.86943912]
[1757112162192,2.485,4312.8,4312.7,28.82013912]
[1757112162959,3.715,4312.8,4312.7,28.82013912]
[1757112163157,3.715,4312.8,4312.7,25.86943912]
[1757112164159,3.715,4312.8,4312.7,28.82013912]
[1757112164363,4.945,4312.8,4312.7,35.21813912]
[1757112164579,4.945,4312.8,4312.7,34.76553912]
[1757112164861,4.945,4312.8,4312.7,35.21813912]
[1757112165708,6.175,4312.8,4312.7,35.21813912]
[1757112166062,6.176,4312.8,4312.7,35.21813912]
[1757112167082,7.406,4312.8,4312.7,35.21813912]
[1757112167711,4.35414186,4312.8,4312.7,35.21813912]
[1757112168606,5.58414186,4312.8,4312.7,35.21813912]
[1757112169095,5.58414186,4312.8,4312.7,72.21813912]
[1757112169567,0.001,4313.3,4312.8,36.11067928]
[1757112169767,1e-08,4312.9,4312.8,39.06137928]
[1757112169984,1.23000001,4312.9,4312.8,42.41342632]
[1757112170369,1e-08,4312.9,4312.8,49.58342632]
[1757112170987,43.05,4313.5,4312.8,49.58342632]
[1757112171175,2.0598939,4315.7,4315.2,2.31738969]
[1757112171378,0.14511819,4315.3,4315.2,6.98830858]
[1757112171717,2.0598939,4315.7,4315.6,3.792]
[1757112171866,2.0598939,4315.7,4315.6,16.7487749]
[1757112172065,2.0598939,4315.7,4315.6,25.35364058]
[1757112172265,0.025,4315.8,4315.7,2.3171212]
[1757112172485,3.69,4317.8,4316.7,6.10858442]
[1757112172712,0.3335,4317.3,4316.7,11.76958442]
[1757112172878,0.0533,4316.8,4316.7,11.94416238]
[1757112173287,0.3585,4316.8,4316.7,11.94416238]
[1757112173485,0.3585,4316.8,4316.7,18.94416238]
[1757112174422,0.3585,4316.8,4316.7,16.62757796]
[1757112174738,0.3585,4316.8,4316.7,18.94416238]
[1757112174884,0.0281,4317.2,4316.8,3.792]
[1757112175238,6.0060029,4317.8,4316.8,7.746]
[1757112175417,30.7781,4316.9,4316.8,12.41912088]
[1757112177321,32.0081,4316.9,4316.8,12.41912088]
[1757112178636,27.83907289,4316.9,4316.8,12.41912088]
[1757112179030,30.29857289,4316.9,4316.8,8.03252307]
[1757112179193,32.56648086,4316.9,4316.8,12.89652307]
[1757112179623,34.88295796,4316.9,4316.8,5.94552307]
[1757112179933,34.88295796,4316.9,4316.8,9.91052307]
[1757112180097,36.11295796,4316.9,4316.8,12.91052307]
[1757112180293,36.11295796,4316.9,4316.8,9.91052307]
[1757112180728,36.11295796,4316.9,4316.8,12.91052307]
[1757112180933,36.11295796,4316.9,4316.8,9.91052307]
[1757112181106,36.11295796,4316.9,4316.8,10.02572307]
[1757112181634,37.34295796,4316.9,4316.8,10.02572307]
[1757112182320,37.34295796,4316.9,4316.8,5.7852]
[1757112182839,38.57295796,4316.9,4316.8,5.7852]
[1757112184660,39.80395796,4316.9,4316.8,12.7852]
[1757112185650,41.03395796,4316.9,4316.8,12.7852]
[1757112186142,41.03395796,4316.9,4316.8,12.7802]
[1757112186143,40.91301703,4316.9,4316.8,12.7802]
[1757112186708,40.91301703,4316.9,4316.8,8.8202]
[1757112186940,40.91301703,4316.9,4316.8,12.7772]
[1757112187228,42.14301703,4316.9,4316.8,12.7772]
[1757112188496,43.37301703,4316.9,4316.8,12.7772]
[1757112189943,44.60301703,4316.9,4316.8,12.7772]
[1757112190619,44.60301703,4316.9,4316.8,12.7752]
[1757112191426,45.83301703,4316.9,4316.8,12.7752]
[1757112192739,47.06301703,4316.9,4316.8,12.7752]
[1757112194150,47.06301703,4316.9,4316.8,8.8202]
[1757112194350,48.29301703,4316.9,4316.8,12.7712]
[1757112195529,49.52301703,4316.9,4316.8,12.7712]
[1757112196934,50.75301703,4316.9,4316.8,12.7712]
[1757112197950,50.75301703,4316.9,4316.8,12.7682]
[1757112198353,51.98301703,4316.9,4316.8,12.7682]
[1757112198764,51.98301703,4316.9,4316.8,8.8202]
[1757112198970,51.98301703,4316.9,4316.8,12.7682]
[1757112199939,53.21301703,4316.9,4316.8,12.7682]
[1757112200552,46.14103196,4316.9,4316.8,15.8568]
[1757112200756,46.14103196,4316.9,4316.8,19.6488]
[1757112201364,47.37103196,4316.9,4316.8,12.9643]
[1757112201550,47.37103196,4316.9,4316.8,12.677]
[1757112201857,49.68750906,4316.9,4316.8,12.677]
[1757112202445,49.68750906,4316.9,4316.8,13.1163]
[1757112202667,49.68750906,4316.9,4316.8,13.4086]
[1757112202872,48.60103196,4316.9,4316.8,13.4086]
[1757112203247,48.60103196,4316.9,4316.8,15.8808]
[1757112204351,49.83103196,4316.9,4316.8,15.8808]
[1757112205673,51.06103196,4316.9,4316.8,15.8808]
[1757112206889,51.06103196,4316.9,4316.8,26.8428]
[1757112207193,52.29103196,4316.9,4316.8,29.15933076]
[1757112207477,52.29103196,4316.9,4316.8,29.15333076]
[1757112208456,53.52103196,4316.9,4316.8,29.15333076]
[1757112209347,53.52103196,4316.9,4316.8,34.48133076]
[1757112209752,54.75103196,4316.9,4316.8,34.48133076]
[1757112210277,54.75103196,4316.9,4316.8,30.51933076]
[1757112210480,54.75103196,4316.9,4316.8,34.60853076]
[1757112211198,55.98103196,4316.9,4316.8,30.63453076]
[1757112211359,55.98103196,4316.9,4316.8,34.60753076]
[1757112211687,55.98103196,4316.9,4316.8,32.289]
[1757112212546,57.21103196,4316.9,4316.8,32.289]
[1757112212751,57.21103196,4316.9,4316.8,22.0538]
[1757112212951,57.21103196,4316.9,4316.8,18.1222]